[Event "Early-Titled-Tuesday-Blitz-June-18-2024"]
[Site "Chess.com"]
[Date "2024.06.18"]
[Round "1"]
[White "TimurDushatov"]
[Black "CrushingKings"]
[Result "1-0"]
[WhiteElo "2370"]
[BlackElo "2644"]
[TimeControl "180+1"]
[EndTime "8:06:50 PDT"]
[Termination "TimurDushatov won by resignation"]

1. e4 {[%clk 0:02:59.2]} 1... g6 {[%clk 0:03:00.6]} 2. d4 {[%clk 0:02:56.9]}
2... Bg7 {[%clk 0:03:00.7]} 3. Nf3 {[%clk 0:02:55.9]} 3... c6 {[%clk 0:03:01]}
4. Be2 {[%clk 0:02:47.8]} 4... d5 {[%clk 0:03:00.7]} 5. e5 {[%clk 0:02:46.8]}
5... f6 {[%clk 0:03:00]} 6. Bf4 {[%clk 0:02:30.6]} 6... Bg4 {[%clk 0:02:59.3]}
7. Nbd2 {[%clk 0:02:27.2]} 7... Nd7 {[%clk 0:02:54.3]} 8. exf6 {[%clk
0:02:23.9]} 8... Ngxf6 {[%clk 0:02:53.7]} 9. Ne5 {[%clk 0:02:15.6]} 9... Bxe2
{[%clk 0:02:51.5]} 10. Qxe2 {[%clk 0:02:15.2]} 10... O-O {[%clk 0:02:52]} 11.
O-O {[%clk 0:02:08.9]} 11... Nh5 {[%clk 0:02:49.7]} 12. Bg5 {[%clk 0:01:59.9]}
12... Nxe5 {[%clk 0:02:38]} 13. dxe5 {[%clk 0:01:58.7]} 13... Qd7 {[%clk
0:02:28.7]} 14. c4 {[%clk 0:01:31.3]} 14... Nf4 {[%clk 0:01:52]} 15. Bxf4 {[%clk
0:01:22.9]} 15... Rxf4 {[%clk 0:01:51]} 16. g3 {[%clk 0:01:20.5]} 16... Rd4
{[%clk 0:01:31.6]} 17. f4 {[%clk 0:01:04.1]} 17... dxc4 {[%clk 0:01:30.6]} 18.
Nxc4 {[%clk 0:01:02.8]} 18... Rd8 {[%clk 0:01:31.1]} 19. Ne3 {[%clk 0:00:41.1]}
19... Rd2 {[%clk 0:01:30.2]} 20. Qc4+ {[%clk 0:00:40.7]} 20... Kh8 {[%clk
0:01:24.3]} 21. Rad1 {[%clk 0:00:39.4]} 21... b5 {[%clk 0:01:14.9]} 22. Qe4
{[%clk 0:00:30.5]} 22... Qe6 {[%clk 0:00:56.5]} 23. b3 {[%clk 0:00:17.9]} 23...
a5 {[%clk 0:00:41.6]} 24. Rxd2 {[%clk 0:00:15.6]} 24... Rxd2 {[%clk 0:00:42.3]}
25. Rf2 {[%clk 0:00:16]} 25... Qd7 {[%clk 0:00:42.4]} 26. Kf1 {[%clk 0:00:06.2]}
26... Rd4 {[%clk 0:00:37]} 27. Qc2 {[%clk 0:00:05.5]} 27... Rd3 {[%clk
0:00:33.5]} 28. Ke2 {[%clk 0:00:04.2]} 28... Qd4 {[%clk 0:00:31.3]} 29. Qxd3
{[%clk 0:00:04.1]} 1-0

[Event "Early-Titled-Tuesday-Blitz-June-18-2024"]
[Site "Chess.com"]
[Date "2024.06.18"]
[Round "1"]
[White "Kors67"]
[Black "YurasovMat-2012"]
[Result "0-1"]
[WhiteElo "2286"]
[BlackElo "2625"]
[TimeControl "180+1"]
[EndTime "8:06:50 PDT"]
[Termination "YurasovMat-2012 won by resignation"]

1. e4 {[%clk 0:02:58]} 1... e5 {[%clk 0:02:59.6]} 2. Nf3 {[%clk 0:02:57.5]} 2...
Nf6 {[%clk 0:02:57.6]} 3. Nxe5 {[%clk 0:02:56.3]} 3... d6 {[%clk 0:02:57.6]} 4.
Nf3 {[%clk 0:02:56.2]} 4... Nxe4 {[%clk 0:02:57.8]} 5. d3 {[%clk 0:02:56.7]}
5... Nf6 {[%clk 0:02:57.2]} 6. d4 {[%clk 0:02:57.1]} 6... d5 {[%clk 0:02:57.5]}
7. Bd3 {[%clk 0:02:56.8]} 7... Bd6 {[%clk 0:02:58.1]} 8. O-O {[%clk 0:02:56.3]}
8... O-O {[%clk 0:02:58.5]} 9. Bg5 {[%clk 0:02:56.7]} 9... h6 {[%clk 0:02:57.7]}
10. Bh4 {[%clk 0:02:56.5]} 10... c6 {[%clk 0:02:57.8]} 11. Nbd2 {[%clk
0:02:49.9]} 11... Re8 {[%clk 0:02:51.8]} 12. c3 {[%clk 0:02:48.4]} 12... Nbd7
{[%clk 0:02:51.4]} 13. Qc2 {[%clk 0:02:47.6]} 13... Nf8 {[%clk 0:02:49.5]} 14.
Rfe1 {[%clk 0:02:46.5]} 14... Ne6 {[%clk 0:02:47.7]} 15. Ne5 {[%clk 0:02:31.6]}
15... Nf4 {[%clk 0:02:47.1]} 16. Bh7+ {[%clk 0:02:28.6]} 16... Kf8 {[%clk
0:02:43.3]} 17. Bf5 {[%clk 0:02:29]} 17... g5 {[%clk 0:02:38]} 18. Bg3 {[%clk
0:02:28.3]} 18... N6h5 {[%clk 0:02:30.5]} 19. Bxc8 {[%clk 0:02:26.1]} 19... Qxc8
{[%clk 0:02:30.2]} 20. Qh7 {[%clk 0:02:26.5]} 20... Bxe5 {[%clk 0:02:28.9]} 21.
dxe5 {[%clk 0:02:16.5]} 21... Qe6 {[%clk 0:02:26.6]} 22. Bxf4 {[%clk 0:02:02.1]}
22... Nxf4 {[%clk 0:02:24.6]} 23. Nf3 {[%clk 0:01:54.1]} 23... Qg6 {[%clk
0:02:04.7]} 24. Qxg6 {[%clk 0:01:52.9]} 24... fxg6 {[%clk 0:01:58.9]} 25. Rad1
{[%clk 0:01:42.1]} 25... g4 {[%clk 0:01:54.8]} 26. Nd4 {[%clk 0:01:41.4]} 26...
Re7 {[%clk 0:01:55.4]} 27. f3 {[%clk 0:01:29.6]} 27... gxf3 {[%clk 0:01:46.6]}
28. Nxf3 {[%clk 0:01:28.7]} 28... Rae8 {[%clk 0:01:46.4]} 29. g3 {[%clk
0:01:23.3]} 29... Ne6 {[%clk 0:01:44.6]} 30. Nh4 {[%clk 0:01:13.8]} 30... Kg7
{[%clk 0:01:42.6]} 31. Rf1 {[%clk 0:01:13.7]} 31... Nf8 {[%clk 0:01:41.9]} 32.
Nf3 {[%clk 0:01:09.2]} 32... Nd7 {[%clk 0:01:41.3]} 33. c4 {[%clk 0:01:06.4]}
33... dxc4 {[%clk 0:01:39.2]} 34. Rfe1 {[%clk 0:01:03.5]} 34... Nc5 {[%clk
0:01:37.1]} 35. Rd4 {[%clk 0:00:58.6]} 35... Nd3 {[%clk 0:01:30.5]} 36. Re2
{[%clk 0:00:58.6]} 36... Nxe5 {[%clk 0:01:15.9]} 37. Rxe5 {[%clk 0:00:54.8]}
37... Rxe5 {[%clk 0:01:15.9]} 38. Nxe5 {[%clk 0:00:55.7]} 38... Rxe5 {[%clk
0:01:16.2]} 39. Rd7+ {[%clk 0:00:56.3]} 39... Kf6 {[%clk 0:01:16.3]} 40. Rxb7
{[%clk 0:00:56.7]} 40... Re2 {[%clk 0:01:14.6]} 41. Rc7 {[%clk 0:00:42]} 41...
Ke5 {[%clk 0:01:12]} 42. Rxc6 {[%clk 0:00:37.3]} 42... Kd5 {[%clk 0:01:07.3]}
43. Rxg6 {[%clk 0:00:11.9]} 43... Rxb2 {[%clk 0:01:06.5]} 44. Rxh6 {[%clk
0:00:08.1]} 44... c3 {[%clk 0:01:06.9]} 45. Rh8 {[%clk 0:00:08]} 45... Rb1+
{[%clk 0:01:06.8]} 46. Kg2 {[%clk 0:00:07.4]} 46... c2 {[%clk 0:01:07.5]} 47.
Rd8+ {[%clk 0:00:07.6]} 47... Ke6 {[%clk 0:01:06.4]} 48. Rc8 {[%clk 0:00:08.5]}
48... c1=Q {[%clk 0:01:06.4]} 49. Rxc1 {[%clk 0:00:08.7]} 49... Rxc1 {[%clk
0:01:07.3]} 0-1

[Event "Early-Titled-Tuesday-Blitz-June-18-2024"]
[Site "Chess.com"]
[Date "2024.06.18"]
[Round "1"]
[White "pavelalexandru07"]
[Black "blitzking1729"]
[Result "0-1"]
[WhiteElo "2471"]
[BlackElo "2826"]
[TimeControl "180+1"]
[EndTime "8:06:51 PDT"]
[Termination "blitzking1729 won by checkmate"]

1. e4 {[%clk 0:03:00.9]} 1... d6 {[%clk 0:02:57.1]} 2. d4 {[%clk 0:03:00.7]}
2... Nf6 {[%clk 0:02:55.4]} 3. Nc3 {[%clk 0:03:00.7]} 3... e5 {[%clk 0:02:55.7]}
4. dxe5 {[%clk 0:03:00.3]} 4... dxe5 {[%clk 0:02:55.8]} 5. Qxd8+ {[%clk
0:03:00.3]} 5... Kxd8 {[%clk 0:02:56.2]} 6. Bc4 {[%clk 0:02:50.5]} 6... Be6
{[%clk 0:02:54.3]} 7. Bxe6 {[%clk 0:02:47.3]} 7... fxe6 {[%clk 0:02:55.2]} 8. a3
{[%clk 0:02:46.5]} 8... Nc6 {[%clk 0:02:53.1]} 9. Nge2 {[%clk 0:02:41.9]} 9...
Bd6 {[%clk 0:02:49.7]} 10. f3 {[%clk 0:02:38.4]} 10... a6 {[%clk 0:02:47.2]} 11.
Be3 {[%clk 0:02:38.2]} 11... Ke7 {[%clk 0:02:47.5]} 12. O-O-O {[%clk 0:02:36.1]}
12... b5 {[%clk 0:02:47.7]} 13. Kb1 {[%clk 0:02:26.6]} 13... Rhb8 {[%clk
0:02:45.9]} 14. Nc1 {[%clk 0:02:25.5]} 14... a5 {[%clk 0:02:45.2]} 15. a4 {[%clk
0:02:19.3]} 15... bxa4 {[%clk 0:02:41]} 16. Nxa4 {[%clk 0:02:18.9]} 16... Rb4
{[%clk 0:02:40.9]} 17. b3 {[%clk 0:02:10.8]} 17... Rab8 {[%clk 0:02:39.9]} 18.
Ka1 {[%clk 0:02:05.2]} 18... Nd4 {[%clk 0:02:37.5]} 19. Rd2 {[%clk 0:02:03.2]}
19... Nd7 {[%clk 0:01:55.8]} 20. Rhd1 {[%clk 0:01:49.2]} 20... Nc5 {[%clk
0:01:37.3]} 21. Nxc5 {[%clk 0:01:46.8]} 21... Bxc5 {[%clk 0:01:37.2]} 22. Nd3
{[%clk 0:00:54.7]} 22... R4b5 {[%clk 0:00:34.6]} 23. Nxc5 {[%clk 0:00:53.3]}
23... Rxc5 {[%clk 0:00:33.7]} 24. Kb2 {[%clk 0:00:53.5]} 24... Rxc2+ {[%clk
0:00:19.7]} 25. Rxc2 {[%clk 0:00:53.6]} 25... Rxb3+ {[%clk 0:00:20.6]} 26. Kc1
{[%clk 0:00:54.1]} 26... Rxe3 {[%clk 0:00:20.5]} 27. Rxc7+ {[%clk 0:00:54.2]}
27... Kf6 {[%clk 0:00:21.2]} 28. Rb7 {[%clk 0:00:44.7]} 28... Ra3 {[%clk
0:00:16.9]} 29. Kb2 {[%clk 0:00:43.2]} 29... Re3 {[%clk 0:00:16.2]} 30. Rd2
{[%clk 0:00:43.4]} 30... a4 {[%clk 0:00:15.8]} 31. Ra7 {[%clk 0:00:43.6]} 31...
Rb3+ {[%clk 0:00:05.9]} 32. Ka2 {[%clk 0:00:41]} 32... Rb4 {[%clk 0:00:06.4]}
33. Rf2 {[%clk 0:00:37.7]} 33... Nb5 {[%clk 0:00:05.9]} 34. Ra8 {[%clk
0:00:32.9]} 34... Nc3+ {[%clk 0:00:06.3]} 35. Ka3 {[%clk 0:00:32.6]} 35... Rb3#
{[%clk 0:00:06.6]} 0-1

[Event "Early-Titled-Tuesday-Blitz-June-18-2024"]
[Site "Chess.com"]
[Date "2024.06.18"]
[Round "1"]
[White "Eagle_2019"]
[Black "AustinThomas12345"]
[Result "1-0"]
[WhiteElo "2852"]
[BlackElo "2484"]
[TimeControl "180+1"]
[EndTime "8:06:52 PDT"]
[Termination "Eagle_2019 won by resignation"]

1. d4 {[%clk 0:03:00.9]} 1... Nf6 {[%clk 0:02:58.6]} 2. Bf4 {[%clk 0:02:58.9]}
2... g6 {[%clk 0:02:58.3]} 3. e3 {[%clk 0:02:56.1]} 3... Bg7 {[%clk 0:02:58.5]}
4. Nf3 {[%clk 0:02:55.8]} 4... O-O {[%clk 0:02:59.2]} 5. h3 {[%clk 0:02:55.8]}
5... d5 {[%clk 0:02:59.7]} 6. Nbd2 {[%clk 0:02:55.3]} 6... c5 {[%clk 0:02:56.8]}
7. c3 {[%clk 0:02:53.4]} 7... Nc6 {[%clk 0:02:56.8]} 8. Be2 {[%clk 0:02:50]}
8... Nd7 {[%clk 0:02:56.3]} 9. O-O {[%clk 0:02:44.3]} 9... e5 {[%clk 0:02:56.5]}
10. dxe5 {[%clk 0:02:43.8]} 10... Ndxe5 {[%clk 0:02:57.4]} 11. Nxe5 {[%clk
0:02:41.9]} 11... Nxe5 {[%clk 0:02:58.3]} 12. Nf3 {[%clk 0:02:41.7]} 12... Nxf3+
{[%clk 0:02:58.9]} 13. Bxf3 {[%clk 0:02:42.6]} 13... Be6 {[%clk 0:02:58.6]} 14.
Qb3 {[%clk 0:02:42.1]} 14... Qb6 {[%clk 0:02:45.8]} 15. Rfd1 {[%clk 0:02:31.8]}
15... Qxb3 {[%clk 0:02:36.1]} 16. axb3 {[%clk 0:02:32.7]} 16... Rfd8 {[%clk
0:02:36.4]} 17. Bc7 {[%clk 0:02:31.1]} 17... Rdc8 {[%clk 0:02:30.7]} 18. Bd6
{[%clk 0:02:26.5]} 18... Rc6 {[%clk 0:02:18.2]} 19. Bf4 {[%clk 0:02:20.4]} 19...
Rb6 {[%clk 0:02:14.2]} 20. Ra3 {[%clk 0:02:14.5]} 20... d4 {[%clk 0:02:04.3]}
21. exd4 {[%clk 0:02:12]} 21... cxd4 {[%clk 0:01:59.1]} 22. c4 {[%clk 0:02:11]}
22... a5 {[%clk 0:01:30.2]} 23. Bc7 {[%clk 0:02:08.5]} 23... Rba6 {[%clk
0:01:25.8]} 24. Bxb7 {[%clk 0:02:07.4]} 24... R6a7 {[%clk 0:01:25.1]} 25. Bxa8
{[%clk 0:02:06.9]} 25... Rxa8 {[%clk 0:01:26]} 26. Bxa5 {[%clk 0:01:55.1]} 26...
d3 {[%clk 0:01:18.1]} 27. Bb4 {[%clk 0:01:44.9]} 27... Rd8 {[%clk 0:01:01.1]}
28. Be7 {[%clk 0:01:43.9]} 28... Re8 {[%clk 0:00:56.6]} 29. Rxd3 {[%clk
0:01:42.5]} 29... Bxb2 {[%clk 0:00:57.1]} 30. Ra7 {[%clk 0:01:36.1]} 30... Kg7
{[%clk 0:00:55.1]} 31. Bc5 {[%clk 0:01:31.8]} 31... Bf5 {[%clk 0:00:48.6]} 32.
Bd4+ {[%clk 0:01:30.5]} 32... Kg8 {[%clk 0:00:48.8]} 33. Rd2 {[%clk 0:01:27.6]}
33... Bc1 {[%clk 0:00:48.7]} 34. Rd1 {[%clk 0:01:27.1]} 34... Bf4 {[%clk
0:00:48.5]} 35. c5 {[%clk 0:01:17]} 35... Bc2 {[%clk 0:00:47.9]} 36. Rda1 {[%clk
0:01:14.1]} 36... Bxb3 {[%clk 0:00:29.3]} 37. Ra8 {[%clk 0:01:06.7]} 37... Bb8
{[%clk 0:00:24.6]} 38. Be5 {[%clk 0:01:00.9]} 38... Rxe5 {[%clk 0:00:21.2]} 39.
Rxb8+ {[%clk 0:01:00.3]} 39... Kg7 {[%clk 0:00:21.8]} 40. Rxb3 {[%clk
0:01:00.9]} 40... Rxc5 {[%clk 0:00:20.9]} 41. g4 {[%clk 0:01:00.6]} 41... h5
{[%clk 0:00:21.2]} 42. gxh5 {[%clk 0:01:00.2]} 42... Rxh5 {[%clk 0:00:22.1]} 43.
Rf3 {[%clk 0:00:58.4]} 43... Rg5+ {[%clk 0:00:21.1]} 44. Kh2 {[%clk 0:00:57.4]}
44... Rf5 {[%clk 0:00:16.7]} 45. Rxf5 {[%clk 0:00:55.9]} 45... gxf5 {[%clk
0:00:17.6]} 46. Ra6 {[%clk 0:00:56.5]} 1-0

[Event "Early-Titled-Tuesday-Blitz-June-18-2024"]
[Site "Chess.com"]
[Date "2024.06.18"]
[Round "1"]
[White "ElCoachRene"]
[Black "tusplingher"]
[Result "0-1"]
[WhiteElo "2073"]
[BlackElo "2565"]
[TimeControl "180+1"]
[EndTime "8:06:54 PDT"]
[Termination "tusplingher won on time"]

1. Nf3 {[%clk 0:02:58.2]} 1... Nf6 {[%clk 0:02:59.1]} 2. d4 {[%clk 0:02:58.2]}
2... e6 {[%clk 0:02:58.6]} 3. Bf4 {[%clk 0:02:58.8]} 3... c5 {[%clk 0:02:57]} 4.
e3 {[%clk 0:02:58.6]} 4... d5 {[%clk 0:02:57.2]} 5. c3 {[%clk 0:02:57.3]} 5...
Nc6 {[%clk 0:02:57.4]} 6. Nbd2 {[%clk 0:02:57.3]} 6... cxd4 {[%clk 0:02:57.5]}
7. exd4 {[%clk 0:02:57]} 7... Nh5 {[%clk 0:02:57.9]} 8. Bg3 {[%clk 0:02:55.7]}
8... f5 {[%clk 0:02:49.8]} 9. Ne5 {[%clk 0:02:49.4]} 9... Nxg3 {[%clk
0:02:49.5]} 10. Nxc6 {[%clk 0:02:43.5]} 10... bxc6 {[%clk 0:02:48.5]} 11. hxg3
{[%clk 0:02:43.6]} 11... Rb8 {[%clk 0:02:46.9]} 12. b4 {[%clk 0:02:37.3]} 12...
a5 {[%clk 0:02:46.2]} 13. a3 {[%clk 0:02:36.7]} 13... Bd6 {[%clk 0:02:39.6]} 14.
Qh5+ {[%clk 0:02:32.4]} 14... g6 {[%clk 0:02:37.7]} 15. Qh6 {[%clk 0:02:26.5]}
15... Qf6 {[%clk 0:02:32.1]} 16. Nf3 {[%clk 0:02:24.1]} 16... Bf8 {[%clk
0:02:22.1]} 17. Qg5 {[%clk 0:02:21.9]} 17... Qxg5 {[%clk 0:02:17.7]} 18. Nxg5
{[%clk 0:02:21.3]} 18... h6 {[%clk 0:02:17.7]} 19. f4 {[%clk 0:02:16.4]} 19...
Bg7 {[%clk 0:02:10.4]} 20. Nf3 {[%clk 0:02:14.5]} 20... Kf7 {[%clk 0:02:04.1]}
21. Bd3 {[%clk 0:02:11.1]} 21... Bd7 {[%clk 0:01:50]} 22. Kd2 {[%clk 0:02:10.1]}
22... Bf6 {[%clk 0:01:44.6]} 23. Rab1 {[%clk 0:01:53.2]} 23... g5 {[%clk
0:01:40.5]} 24. Ne5+ {[%clk 0:01:48.8]} 24... Bxe5 {[%clk 0:01:40.2]} 25. dxe5
{[%clk 0:01:48.6]} 25... axb4 {[%clk 0:01:39]} 26. axb4 {[%clk 0:01:46.5]} 26...
Rbg8 {[%clk 0:01:28.5]} 27. Rh2 {[%clk 0:01:25.7]} 27... gxf4 {[%clk 0:01:22]}
28. gxf4 {[%clk 0:01:24.8]} 28... Rg4 {[%clk 0:01:21.8]} 29. Ke3 {[%clk
0:01:23.5]} 29... Rhg8 {[%clk 0:01:19.2]} 30. Rg1 {[%clk 0:01:15.5]} 30... Rg3+
{[%clk 0:01:14.5]} 31. Kd2 {[%clk 0:01:13]} 31... R8g4 {[%clk 0:00:55]} 32. Rxh6
{[%clk 0:01:03.1]} 32... Rxf4 {[%clk 0:00:50.4]} 33. Rh7+ {[%clk 0:00:58.6]}
33... Rg7 {[%clk 0:00:35]} 0-1

[Event "Early-Titled-Tuesday-Blitz-June-18-2024"]
[Site "Chess.com"]
[Date "2024.06.18"]
[Round "1"]
[White "chessfatbear"]
[Black "AttilaTurzo"]
[Result "1-0"]
[WhiteElo "2761"]
[BlackElo "2426"]
[TimeControl "180+1"]
[EndTime "8:06:56 PDT"]
[Termination "chessfatbear won on time"]

1. e4 {[%clk 0:02:59.5]} 1... e5 {[%clk 0:02:59.1]} 2. Nf3 {[%clk 0:02:59.2]}
2... Nc6 {[%clk 0:02:58.6]} 3. Bb5 {[%clk 0:02:57.6]} 3... a6 {[%clk 0:02:56.9]}
4. Ba4 {[%clk 0:02:57.2]} 4... Nf6 {[%clk 0:02:55.2]} 5. O-O {[%clk 0:02:56.5]}
5... Be7 {[%clk 0:02:55.6]} 6. Re1 {[%clk 0:02:55.9]} 6... b5 {[%clk 0:02:55.3]}
7. Bb3 {[%clk 0:02:56]} 7... O-O {[%clk 0:02:50.5]} 8. d3 {[%clk 0:02:55.1]}
8... d6 {[%clk 0:02:48.1]} 9. c3 {[%clk 0:02:55.1]} 9... Nb8 {[%clk 0:02:44.3]}
10. Nbd2 {[%clk 0:02:54.6]} 10... Nbd7 {[%clk 0:02:44.5]} 11. Nf1 {[%clk
0:02:54.1]} 11... Bb7 {[%clk 0:02:44.6]} 12. Ng3 {[%clk 0:02:53.4]} 12... Nc5
{[%clk 0:02:29.4]} 13. Bc2 {[%clk 0:02:52.9]} 13... Re8 {[%clk 0:02:22.8]} 14.
d4 {[%clk 0:02:52.4]} 14... Ncd7 {[%clk 0:02:22.5]} 15. a4 {[%clk 0:02:40.9]}
15... g6 {[%clk 0:02:20.1]} 16. h4 {[%clk 0:02:32.8]} 16... h5 {[%clk
0:02:18.7]} 17. Bb3 {[%clk 0:02:26.8]} 17... Nh7 {[%clk 0:02:05.2]} 18. axb5
{[%clk 0:02:00.5]} 18... axb5 {[%clk 0:02:03.8]} 19. Rxa8 {[%clk 0:02:00.2]}
19... Bxa8 {[%clk 0:02:01.4]} 20. Qd3 {[%clk 0:01:53.5]} 20... c6 {[%clk
0:01:52.1]} 21. Be3 {[%clk 0:01:31.5]} 21... Qc7 {[%clk 0:01:40]} 22. Ra1 {[%clk
0:01:28.1]} 22... Bb7 {[%clk 0:01:37.9]} 23. Qd2 {[%clk 0:01:26.5]} 23... Ra8
{[%clk 0:01:35.2]} 24. Rd1 {[%clk 0:01:26.1]} 24... Ndf8 {[%clk 0:01:24.3]} 25.
Ng5 {[%clk 0:01:21.7]} 25... Nxg5 {[%clk 0:01:22.5]} 26. Bxg5 {[%clk 0:01:21.9]}
26... Re8 {[%clk 0:01:12.3]} 27. Bxe7 {[%clk 0:01:16.6]} 27... Qxe7 {[%clk
0:01:10.6]} 28. dxe5 {[%clk 0:01:08.6]} 28... dxe5 {[%clk 0:01:09.5]} 29. Qh6
{[%clk 0:00:46]} 29... Qxh4 {[%clk 0:01:00.8]} 30. Rd7 {[%clk 0:00:41.7]} 30...
Nxd7 {[%clk 0:00:32.2]} 31. Qxg6+ {[%clk 0:00:41.7]} 31... Kh8 {[%clk
0:00:32.3]} 32. Bxf7 {[%clk 0:00:42.2]} 32... Qf6 {[%clk 0:00:01.7]} 33. Qxh5+
{[%clk 0:00:42.1]} 33... Kg7 {[%clk 0:00:01.5]} 34. Bxe8 {[%clk 0:00:42.1]} 1-0

[Event "Early-Titled-Tuesday-Blitz-June-18-2024"]
[Site "Chess.com"]
[Date "2024.06.18"]
[Round "1"]
[White "cochess777"]
[Black "yaguigor"]
[Result "0-1"]
[WhiteElo "2312"]
[BlackElo "2644"]
[TimeControl "180+1"]
[EndTime "8:06:58 PDT"]
[Termination "yaguigor won by resignation"]

1. e4 {[%clk 0:02:51.4]} 1... c5 {[%clk 0:02:59]} 2. d4 {[%clk 0:02:51.5]} 2...
cxd4 {[%clk 0:02:58.3]} 3. c3 {[%clk 0:02:52.2]} 3... Nf6 {[%clk 0:02:54.7]} 4.
e5 {[%clk 0:02:52.5]} 4... Nd5 {[%clk 0:02:54.6]} 5. Nf3 {[%clk 0:02:53.2]} 5...
Nc6 {[%clk 0:02:53.8]} 6. Bc4 {[%clk 0:02:53.8]} 6... e6 {[%clk 0:02:53.6]} 7.
cxd4 {[%clk 0:02:53.7]} 7... d6 {[%clk 0:02:53.8]} 8. a3 {[%clk 0:02:54]} 8...
Be7 {[%clk 0:02:50]} 9. O-O {[%clk 0:02:54.1]} 9... O-O {[%clk 0:02:49.2]} 10.
Re1 {[%clk 0:02:54.6]} 10... b6 {[%clk 0:02:00.1]} 11. Bd3 {[%clk 0:02:42.4]}
11... Bb7 {[%clk 0:01:56.1]} 12. Qe2 {[%clk 0:02:16.6]} 12... Rc8 {[%clk
0:01:42.8]} 13. Bd2 {[%clk 0:02:11.5]} 13... Na5 {[%clk 0:01:16.1]} 14. Qe4
{[%clk 0:02:05.3]} 14... g6 {[%clk 0:01:14.4]} 15. exd6 {[%clk 0:01:48.1]} 15...
Qxd6 {[%clk 0:01:09.9]} 16. Bxa5 {[%clk 0:01:45.4]} 16... bxa5 {[%clk 0:01:08]}
17. Nbd2 {[%clk 0:01:44.9]} 17... Bf6 {[%clk 0:01:02.8]} 18. Rac1 {[%clk
0:01:27.9]} 18... Qf4 {[%clk 0:00:50.6]} 19. g3 {[%clk 0:01:19.6]} 19... Qxe4
{[%clk 0:00:49.1]} 20. Nxe4 {[%clk 0:01:20.5]} 20... Be7 {[%clk 0:00:48.5]} 21.
Ne5 {[%clk 0:01:15.2]} 21... Rfd8 {[%clk 0:00:41.7]} 22. Nc4 {[%clk 0:00:24.5]}
22... Ba6 {[%clk 0:00:38.2]} 23. Bf1 {[%clk 0:00:19]} 23... Bxc4 {[%clk
0:00:35.6]} 24. Bxc4 {[%clk 0:00:19.9]} 24... Nb6 {[%clk 0:00:35.3]} 25. Ba6
{[%clk 0:00:18.6]} 25... Rxc1 {[%clk 0:00:34.8]} 26. Rxc1 {[%clk 0:00:19.5]}
26... Rxd4 {[%clk 0:00:34.8]} 27. f3 {[%clk 0:00:03.4]} 27... h5 {[%clk
0:00:23.6]} 28. h4 {[%clk 0:00:03]} 28... Kf8 {[%clk 0:00:22.8]} 29. Rc8+ {[%clk
0:00:03.2]} 0-1

[Event "Early-Titled-Tuesday-Blitz-June-18-2024"]
[Site "Chess.com"]
[Date "2024.06.18"]
[Round "1"]
[White "Sofia_Blokhin"]
[Black "ArtemDyachuk"]
[Result "0-1"]
[WhiteElo "2299"]
[BlackElo "2629"]
[TimeControl "180+1"]
[EndTime "8:06:58 PDT"]
[Termination "ArtemDyachuk won on time"]

1. d4 {[%clk 0:03:00.9]} 1... d5 {[%clk 0:02:57.5]} 2. c4 {[%clk 0:03:00.6]}
2... e6 {[%clk 0:02:56.8]} 3. Nc3 {[%clk 0:03:00.2]} 3... Nf6 {[%clk 0:02:57.1]}
4. Nf3 {[%clk 0:02:59.7]} 4... Be7 {[%clk 0:02:57.5]} 5. e3 {[%clk 0:02:59.5]}
5... O-O {[%clk 0:02:57.6]} 6. cxd5 {[%clk 0:02:58.5]} 6... exd5 {[%clk
0:02:57.1]} 7. Bd3 {[%clk 0:02:58.5]} 7... c6 {[%clk 0:02:56.7]} 8. O-O {[%clk
0:02:56.6]} 8... Bg4 {[%clk 0:02:56.3]} 9. Qc2 {[%clk 0:02:53.8]} 9... Nbd7
{[%clk 0:02:54.5]} 10. Ne5 {[%clk 0:02:50.8]} 10... Bh5 {[%clk 0:02:50.4]} 11.
f4 {[%clk 0:02:45.9]} 11... c5 {[%clk 0:02:22.1]} 12. h3 {[%clk 0:02:38.5]}
12... c4 {[%clk 0:01:48.4]} 13. Bf5 {[%clk 0:02:34.4]} 13... Bg6 {[%clk
0:01:40.3]} 14. g4 {[%clk 0:02:13.5]} 14... Bb4 {[%clk 0:01:34]} 15. g5 {[%clk
0:02:02.6]} 15... Nxe5 {[%clk 0:01:13.2]} 16. dxe5 {[%clk 0:01:36.7]} 16... Nh5
{[%clk 0:01:03.5]} 17. Bxg6 {[%clk 0:01:31.8]} 17... hxg6 {[%clk 0:01:04.4]} 18.
Ne2 {[%clk 0:01:27.5]} 18... Qd7 {[%clk 0:01:02.4]} 19. Kh2 {[%clk 0:01:23.2]}
19... Bc5 {[%clk 0:00:55.2]} 20. Bd2 {[%clk 0:01:07.1]} 20... d4 {[%clk
0:00:46.7]} 21. exd4 {[%clk 0:00:59.6]} 21... Bxd4 {[%clk 0:00:47.6]} 22. Nxd4
{[%clk 0:00:50.1]} 22... Qxd4 {[%clk 0:00:48.5]} 23. Bc3 {[%clk 0:00:48.1]}
23... Qe3 {[%clk 0:00:46.2]} 24. Rae1 {[%clk 0:00:43.4]} 24... Qg3+ {[%clk
0:00:45.6]} 25. Kh1 {[%clk 0:00:42]} 25... Qxh3+ {[%clk 0:00:46.5]} 26. Kg1
{[%clk 0:00:37.1]} 26... Nxf4 {[%clk 0:00:46.7]} 27. Rxf4 {[%clk 0:00:21.8]}
27... Qg3+ {[%clk 0:00:45.9]} 28. Qg2 {[%clk 0:00:21.4]} 28... Qxf4 {[%clk
0:00:45.7]} 29. e6 {[%clk 0:00:17.5]} 29... fxe6 {[%clk 0:00:45.9]} 30. Rxe6
{[%clk 0:00:16.2]} 30... Qc1+ {[%clk 0:00:42.4]} 31. Re1 {[%clk 0:00:14.5]}
31... Qf4 {[%clk 0:00:39.8]} 32. Re7 {[%clk 0:00:13]} 32... Rf7 {[%clk
0:00:37.9]} 33. Rxb7 {[%clk 0:00:04.4]} 33... Rd8 {[%clk 0:00:31.1]} 34. Rxf7
{[%clk 0:00:03.8]} 34... Rd1+ {[%clk 0:00:30.7]} 0-1